[Event "Fagernes GM-B 2019"]
[Site "Fagernes"]
[Date "2019.04.18"]
[Round "6.24"]
[White "Kazakovskiy, Valeriy"]
[Black "Lund, Gunnar"]
[Result "1/2-1/2"]
[ECO "C41"]
[WhiteElo "2440"]
[BlackElo "2271"]
[Annotator "ChessBase"]
[PlyCount "185"]
[EventDate "2019.04.14"]
[EventType "tourn"]
[EventCountry "NOR"]
[SourceTitle "playchess.com"]
[Source "ChessBase"]
[SourceQuality "1"]
[TimeControl "40/5400+30:1800+30"]

1. d4 {[%emt 0:00:00]} d6 {[%emt 0:03:10]} 2. e4 {[%emt 0:00:03]} Nf6 {[%emt 0:00:46]} 3. Nc3 {[%emt 0:00:15]} e5 {[%emt 0:00:32]} 4. Nge2 {[%emt 0:00:18]} exd4 {[%emt 0:01:12]} 5. Nxd4 {[%emt 0:00:28]} Be7 {[%emt 0:00:13]} 6. g3 {[%emt 0:00:34]} O-O {[%emt 0:01:27]} 7. Bg2 {[%emt 0:00:32]} Nbd7 {[%emt 0:02:46]} 8. O-O {[%emt 0:05:03]} Re8 {[%emt 0:02:09]} 9. Bf4 {[%emt 0:06:03]} Ne5 {[%emt 0:03:34]} 10. h3 {[%emt 0:04:13]} c6 {[%emt 0:02:59]} 11. g4 {[%emt 0:06:47]} Bf8 {[%emt 0:06:17]} 12. Nde2 {[%emt 0:15:25]} b5 {[%emt 0:10:12]} 13. a3 {[%emt 0:03:48]} Bb7 {[%emt 0:03:56]} 14. g5 {[%emt 0:12:56]} Nfd7 {[%emt 0:02:46]} 15. Ng3 {[%emt 0:01:14]} Ng6 {[%emt 0:05:43]} 16. Be3 {[%emt 0:04:30]} Nde5 {[%emt 0:04:27]} 17. b3 {[%emt 0:03:38]} a5 {[%emt 0:03:41]} 18. f4 {[%emt 0:01:43]} Nd7 {[%emt 0:00:06]} 19. Nf5 {[%emt 0:05:11]} b4 {[%emt 0:06:00]} 20. axb4 {[%emt 0:01:57]} axb4 {[%emt 0:00:12]} 21. Rxa8 {[%emt 0:00:28]} Qxa8 {[%emt 0:01:10]} 22. Ne2 {[%emt 0:00:58]} d5 {[%emt 0:03:47]} 23. Neg3 {[%emt 0:06:38]} c5 {[%emt 0:03:44]} 24. h4 {[%emt 0:02:52]} d4 {[%emt 0:05:02]} 25. Bd2 {[%emt 0:01:20]} Re6 {[%emt 0:04:15]} 26. h5 {[%emt 0:04:13]} Ne7 {[%emt 0:00:21]} 27. Nxe7+ {[%emt 0:00:02]} Rxe7 {[%emt 0:00:22]} 28. Qg4 {[%emt 0:00:37]} g6 {[%emt 0:02:45]} 29. hxg6 {[%emt 0:00:35]} hxg6 {[%emt 0:00:19]} 30. Bf3 {[%emt 0:04:18]} Qa2 {[%emt 0:03:00]} 31. Rc1 {[%emt 0:03:23]} d3 {[%emt 0:01:53]} 32. e5 {[%emt 0:00:16]} Bxf3 {[%emt 0:02:41]} 33. Qxf3 {[%emt 0:00:02]} dxc2 {[%emt 0:00:14]} 34. Qd3 {[%emt 0:00:31]} c4 {[%emt 0:05:24]} 35. Qxc4 {[%emt 0:01:23]} Qa7+ {[%emt 0:00:14]} 36. Kg2 {[%emt 0:01:33]} Qb7+ {[%emt 0:02:45]} 37. Qe4 {[%emt 0:00:37]} Nc5 {[%emt 0:00:12]} 38. Qxb7 {[%emt 0:01:57]} Rxb7 {[%emt 0:00:02]} 39. Rxc2 {[%emt 0:00:09]} Nxb3 {[%emt 0:00:04]} 40. Ne4 {[%emt 0:01:53]} Nxd2 {[%emt 0:05:47]} 41. Nxd2 {[%emt 0:31:29]} Be7 {[%emt 0:31:38]} 42. Kf3 {[%emt 0:00:00]} Kf8 {[%emt 0:00:00]} 43. Rc8+ {[%emt 0:00:00]} Kg7 {[%emt 0:00:00]} 44. Nb3 {[%emt 0:00:00]} Bf8 {[%emt 0:00:00]} 45. Ke4 {[%emt 0:00:00]} Be7 {[%emt 0:00:00]} 46. Kd3 {[%emt 0:00:00]} Rd7+ {[%emt 0:00:00]} 47. Kc2 {[%emt 0:00:00]} Bd8 {[%emt 0:00:00]} 48. Rc4 {[%emt 0:00:00]} Be7 {[%emt 0:00:00]} 49. Nd4 {[%emt 0:00:00]} Rd5 {[%emt 0:00:00]} 50. Nc6 {[%emt 0:00:00]} Bf8 {[%emt 0:00:00]} 51. Nxb4 {[%emt 0:00:00]} Bxb4 {[%emt 0:00:00]} 52. Rxb4 {[%emt 0:00:00]} Kf8 {[%emt 0:00:00]} 53. Kc3 {[%emt 0:00:00]} Ke7 {[%emt 0:00:00]} 54. Rd4 {[%emt 0:00:04]} Ra5 {[%emt 0:00:00]} 55. Kd3 {[%emt 0:00:47]} Ra1 {[%emt 0:00:00]} 56. Rb4 {[%emt 0:00:26]} Rd1+ {[%emt 0:00:00]} 57. Ke2 {[%emt 0:00:19]} Ra1 {[%emt 0:00:00]} 58. Rb7+ {[%emt 0:01:04]} Ke6 {[%emt 0:00:00]} 59. Rb6+ {[%emt 0:00:06]} Ke7 {[%emt 0:00:00]} 60. Rf6 {[%emt 0:01:00]} Ra2+ {[%emt 0:00:00]} 61. Kf3 {[%emt 0:00:25]} Ra3+ {[%emt 0:00:00]} 62. Kg4 {[%emt 0:00:09]} Re3 {[%emt 0:00:00]} 63. Ra6 {[%emt 0:03:43]} Ke8 {[%emt 0:00:00]} 64. Ra1 {[%emt 0:00:21]} Ke7 {[%emt 0:00:00]} 65. Rf1 {[%emt 0:00:07]} Ke6 {[%emt 0:00:00]} 66. Rf3 {[%emt 0:00:12]} Re1 {[%emt 0:00:00]} 67. Ra3 {[%emt 0:00:37]} Re2 {[%emt 0:00:00]} 68. Kf3 {[%emt 0:00:20]} Re1 {[%emt 0:01:46]} 69. Ra6+ {[%emt 0:00:06]} Ke7 {[%emt 0:00:01]} 70. Ra4 {[%emt 0:00:08]} Ke6 {[%emt 0:00:14]} 71. Kf2 {[%emt 0:00:06]} Rb1 {[%emt 0:00:27]} 72. Ra6+ {[%emt 0:01:14]} Ke7 {[%emt 0:00:45]} 73. Rf6 {[%emt 0:00:13]} Rb2+ {[%emt 0:01:18]} 74. Ke3 {[%emt 0:00:03]} Rb1 {[%emt 0:01:52]} 75. Kd2 {[%emt 0:00:08]} Rb2+ {[%emt 0:03:25]} 76. Kd3 {[%emt 0:00:18]} Rb3+ {[%emt 0:00:10]} 77. Kd4 {[%emt 0:00:10]} Rb4+ {[%emt 0:00:17]} 78. Kd5 {[%emt 0:00:14]} Rb5+ {[%emt 0:00:50]} 79. Kc4 {[%emt 0:01:03]} Ra5 {[%emt 0:00:06]} 80. Kb3 {[%emt 0:04:06]} Rb5+ {[%emt 0:00:53]} 81. Kc3 {[%emt 0:00:01]} Ra5 {[%emt 0:00:51]} 82. e6 {[%emt 0:01:10]} fxe6 {[%emt 0:00:10]} 83. Kd4 {[%emt 0:00:19]} Ra4+ {[%emt 0:00:47]} 84. Ke3 {[%emt 0:00:02]} Ra3+ {[%emt 0:01:54]} 85. Ke4 {[%emt 0:00:02]} Ra4+ {[%emt 0:00:11]} 86. Kf3 {[%emt 0:00:01]} Ra3+ {[%emt 0:00:52]} 87. Kg4 {[%emt 0:00:02]} Ra4 {[%emt 0:00:23]} 88. Rxg6 {[%emt 0:00:26]} e5 {[%emt 0:00:09]} 89. Kf5 {[%emt 0:00:11]} Rxf4+ {[%emt 0:00:07]} 90. Kxe5 {[%emt 0:00:06]} Rf1 {[%emt 0:00:10]} 91. Rg7+ {[%emt 0:01:00]} Kf8 {[%emt 0:00:08]} 92. Rc7 {[%emt 0:01:43]} Kg8 {[%emt 0:00:21]} 93. Rd7 {[%emt 0:00:17]} 1/2-1/2

[Event "Fagernes GM-B 2019"]
[Site "Fagernes"]
[Date "2019.04.18"]
[Round "6.25"]
[White "Holm, Kristian Stuvik"]
[Black "Kaasen, Tor Fredrik"]
[Result "0-1"]
[ECO "A15"]
[WhiteElo "2467"]
[BlackElo "2385"]
[Annotator "ChessBase"]
[PlyCount "88"]
[EventDate "2019.04.14"]
[EventType "tourn"]
[EventCountry "NOR"]
[SourceTitle "playchess.com"]
[Source "ChessBase"]
[SourceQuality "1"]
[TimeControl "40/5400+30:1800+30"]

1. Nf3 {[%emt 0:00:22]} Nf6 {[%emt 0:00:06]} 2. g3 {[%emt 0:00:08]} g6 {[%emt 0:00:54]} 3. b3 {[%emt 0:01:32]} Bg7 {[%emt 0:03:14]} 4. Bb2 {[%emt 0:00:37]} b6 {[%emt 0:04:11]} 5. Bg2 {[%emt 0:00:19]} Bb7 {[%emt 0:00:05]} 6. O-O {[%emt 0:00:27]} O-O {[%emt 0:00:42]} 7. c4 {[%emt 0:00:04]} e6 {[%emt 0:00:59]} 8. d4 {[%emt 0:02:35]} d6 {[%emt 0:01:42]} 9. Nc3 {[%emt 0:07:47]} Ne4 {[%emt 0:01:44]} 10. Qc2 {[%emt 0:00:49]} Nxc3 {[%emt 0:00:47]} 11. Bxc3 {[%emt 0:00:24]} Nd7 {[%emt 0:01:08]} 12. e4 {[%emt 0:01:58]} Qe7 {[%emt 0:08:47]} 13. Rfe1 {[%emt 0:04:53]} e5 {[%emt 0:02:01]} 14. d5 {[%emt 0:12:51]} c6 {[%emt 0:02:26]} 15. Rad1 {[%emt 0:04:41]} Rfd8 {[%emt 0:02:18]} 16. Qd2 {[%emt 0:04:03]} Nc5 {[%emt 0:10:15]} 17. Bb4 {[%emt 0:10:36]} a5 {[%emt 0:03:50]} 18. Bxc5 {[%emt 0:06:09]} bxc5 {[%emt 0:00:27]} 19. a4 {[%emt 0:00:26]} Qc7 {[%emt 0:05:29]} 20. Qd3 {[%emt 0:01:58]} cxd5 {[%emt 0:08:27]} 21. exd5 {[%emt 0:04:36]} Re8 {[%emt 0:03:29]} 22. Nd2 {[%emt 0:03:14]} f5 {[%emt 0:10:07]} 23. f3 {[%emt 0:00:37]} Re7 {[%emt 0:03:57]} 24. Nb1 {[%emt 0:00:39]} Rf8 {[%emt 0:00:29]} 25. Nc3 {[%emt 0:00:20]} Bc8 {[%emt 0:00:24]} 26. Nb5 {[%emt 0:02:14]} Qd8 {[%emt 0:00:57]} 27. Qd2 {[%emt 0:01:30]} h5 {[%emt 0:00:57]} 28. f4 {[%emt 0:03:27]} Bh6 {[%emt 0:03:48]} 29. Qf2 {[%emt 0:00:56]} Rfe8 {[%emt 0:03:06]} 30. fxe5 {[%emt 0:04:31]} Rxe5 {[%emt 0:00:07]} 31. Rxe5 {[%emt 0:00:10]} Rxe5 {[%emt 0:00:06]} 32. Re1 {[%emt 0:00:05]} Qe7 {[%emt 0:00:27]} 33. Rxe5 {[%emt 0:00:20]} Qxe5 {[%emt 0:00:07]} 34. Kf1 {[%emt 0:12:21]} Be3 {[%emt 0:00:55]} 35. Qe1 {[%emt 0:00:03]} f4 {[%emt 0:03:35]} 36. Qc3 {[%emt 0:00:47]} Qe7 {[%emt 0:03:33]} 37. gxf4 {[%emt 0:03:05]} Bxf4 {[%emt 0:01:53]} 38. Bh3 {[%emt 0:01:06]} Be5 {[%emt 0:03:48]} 39. Qf3 {[%emt 0:00:36]} Qf6 {[%emt 0:00:20]} 40. Bg2 {[%emt 0:01:49]} Bf5 {[%emt 0:01:09]} 41. h3 {[%emt 0:06:09]} Qg5 {[%emt 0:02:08]} 42. Nc3 {[%emt 0:02:46]} Qc1+ {[%emt 0:05:23]} 43. Nd1 {[%emt 0:00:11]} Bc2 {[%emt 0:00:33]} 44. Ke1 {[%emt 0:00:04]} h4 {[%emt 0:00:06]} 0-1

[Event "Fagernes GM-B 2019"]
[Site "Fagernes"]
[Date "2019.04.18"]
[Round "6.26"]
[White "Greenfeld, Alon"]
[Black "Betaneli, Alexander"]
[Result "1-0"]
[ECO "E06"]
[WhiteElo "2514"]
[BlackElo "2235"]
[Annotator "ChessBase"]
[PlyCount "79"]
[EventDate "2019.04.14"]
[EventType "tourn"]
[EventCountry "NOR"]
[SourceTitle "playchess.com"]
[Source "ChessBase"]
[SourceQuality "1"]
[TimeControl "40/5400+30:1800+30"]

1. c4 {[%emt 0:06:43]} e6 {[%emt 0:00:00]} 2. g3 {[%emt 0:00:32]} d5 {[%emt 0:00:00]} 3. Bg2 {[%emt 0:00:14]} Nf6 {[%emt 0:00:00]} 4. Nf3 {[%emt 0:00:55]} Be7 {[%emt 0:00:05]} 5. O-O {[%emt 0:01:38]} O-O {[%emt 0:00:05]} 6. d4 {[%emt 0:03:05]} c6 {[%emt 0:00:53]} 7. Qc2 {[%emt 0:00:46]} b6 {[%emt 0:02:21]} 8. Nbd2 {[%emt 0:02:17]} Bb7 {[%emt 0:00:53]} 9. e4 {[%emt 0:01:51]} Na6 {[%emt 0:00:19]} 10. e5 {[%emt 0:00:37]} Nd7 {[%emt 0:00:06]} 11. a3 {[%emt 0:02:25]} Nc7 {[%emt 0:00:34]} 12. Re1 {[%emt 0:17:44]} a5 {[%emt 0:12:03]} 13. h4 {[%emt 0:11:20]} c5 {[%emt 0:11:14]} 14. Nf1 {[%emt 0:05:31]} cxd4 {[%emt 0:09:20]} 15. Nxd4 {[%emt 0:02:52]} Nc5 {[%emt 0:01:36]} 16. Bf4 {[%emt 0:06:02]} dxc4 {[%emt 0:06:34]} 17. Bxb7 {[%emt 0:02:51]} Nxb7 {[%emt 0:00:10]} 18. Nc6 {[%emt 0:01:38]} Qd7 {[%emt 0:00:59]} 19. Nxe7+ {[%emt 0:00:16]} Qxe7 {[%emt 0:00:05]} 20. Qxc4 {[%emt 0:00:11]} Nd5 {[%emt 0:06:58]} 21. Bg5 {[%emt 0:00:57]} Qc5 {[%emt 0:05:08]} 22. Qg4 {[%emt 0:00:14]} Rfc8 {[%emt 0:01:40]} 23. Nd2 {[%emt 0:13:00]} Qf8 {[%emt 0:05:21]} 24. Ne4 {[%emt 0:00:33]} Rc6 {[%emt 0:02:12]} 25. Rad1 {[%emt 0:03:55]} Kh8 {[%emt 0:02:21]} 26. Rd4 {[%emt 0:03:43]} f5 {[%emt 0:06:09]} 27. exf6 {[%emt 0:00:55]} gxf6 {[%emt 0:00:02]} 28. Rxd5 {[%emt 0:02:06]} exd5 {[%emt 0:01:58]} 29. Nxf6 {[%emt 0:00:07]} h6 {[%emt 0:14:25]} 30. Qd7 {[%emt 0:01:13]} Rxf6 {[%emt 0:00:27]} 31. Bxf6+ {[%emt 0:00:12]} Qxf6 {[%emt 0:00:04]} 32. Qxb7 {[%emt 0:00:23]} Rf8 {[%emt 0:00:43]} 33. Re2 {[%emt 0:00:12]} d4 {[%emt 0:00:13]} 34. Qe7 {[%emt 0:04:39]} Qxe7 {[%emt 0:08:12]} 35. Rxe7 {[%emt 0:00:02]} Rd8 {[%emt 0:01:31]} 36. Re2 {[%emt 0:01:34]} b5 {[%emt 0:02:11]} 37. Kg2 {[%emt 0:00:41]} b4 {[%emt 0:00:06]} 38. axb4 {[%emt 0:00:32]} axb4 {[%emt 0:00:04]} 39. Kf3 {[%emt 0:00:28]} Kg7 {[%emt 0:00:47]} 40. Ke4 {[%emt 0:00:24]} 1-0

[Event "Fagernes GM-B 2019"]
[Site "Fagernes"]
[Date "2019.04.19"]
[Round "7.21"]
[White "Fuglestein, Sander"]
[Black "Skotheim, Andreas"]
[Result "1/2-1/2"]
[ECO "E05"]
[WhiteElo "2000"]
[BlackElo "2182"]
[Annotator "NA"]
[PlyCount "63"]
[EventDate "2019.04.14"]
[EventType "tourn"]
[EventCountry "NOR"]
[SourceTitle "playchess.com"]
[Source "ChessBase"]
[SourceQuality "1"]
[TimeControl "40/5400+30:1800+30"]

1. d4 {[%emt 0:00:00]} Nf6 {[%emt 0:00:00]} 2. c4 {[%emt 0:00:00]} e6 {[%emt 0:00:00]} 3. Nf3 {[%emt 0:00:00]} d5 {[%emt 0:00:00]} 4. g3 {[%emt 0:00:00]} Be7 {[%emt 0:00:00]} 5. Bg2 {[%emt 0:00:00]} O-O {[%emt 0:00:00]} 6. O-O {[%emt 0:00:00]} dxc4 {[%emt 0:00:00]} 7. Qc2 {[%emt 0:00:00]} a6 {[%emt 0:00:00]} 8. a4 {[%emt 0:00:00]} Bd7 {[%emt 0:00:00]} 9. Qxc4 {[%emt 0:00:00]} Bc6 {[%emt 0:00:00]} 10. Bg5 {[%emt 0:00:00]} a5 {[%emt 0:00:00]} 11. Nc3 {[%emt 0:00:00]} Na6 {[%emt 0:03:02]} 12. Bxf6 {[%emt 0:00:00]} Bxf6 {[%emt 0:00:50]} 13. e4 {[%emt 0:00:00]} Nb4 {[%emt 0:02:27]} 14. Rfd1 {[%emt 0:00:00]} b6 {[%emt 0:07:06]} 15. Rac1 {[%emt 0:07:56]} Bb7 {[%emt 0:12:31]} 16. h4 {[%emt 0:13:04]} Ba6 {[%emt 0:11:05]} 17. Qb3 {[%emt 0:01:18]} c6 {[%emt 0:12:48]} 18. Rd2 {[%emt 0:15:34]} Rc8 {[%emt 0:04:39]} 19. Nd1 {[%emt 0:02:32]} Rc7 {[%emt 0:03:40]} 20. Ne3 {[%emt 0:03:50]} Rd7 {[%emt 0:01:43]} 21. Rcd1 {[%emt 0:01:57]} h5 {[%emt 0:02:11]} 22. Bh3 {[%emt 0:06:23]} Bb7 {[%emt 0:05:25]} 23. Ng2 {[%emt 0:02:16]} c5 {[%emt 0:08:26]} 24. dxc5 {[%emt 0:06:32]} Rxd2 {[%emt 0:01:00]} 25. Rxd2 {[%emt 0:01:12]} Qa8 {[%emt 0:01:50]} 26. cxb6 {[%emt 0:05:32]} Bxe4 {[%emt 0:00:52]} 27. Ng5 {[%emt 0:01:48]} Bd5 {[%emt 0:00:53]} 28. Qd1 {[%emt 0:04:51]} Bxg5 {[%emt 0:02:39]} 29. hxg5 {[%emt 0:00:31]} g6 {[%emt 0:00:49]} 30. Nf4 {[%emt 0:03:01]} Qc6 {[%emt 0:01:34]} 31. Nxd5 {[%emt 0:01:31]} Nxd5 {[%emt 0:00:40]} 32. Bg2 {[%emt 0:03:32]} 1/2-1/2

[Event "Fagernes GM-B 2019"]
[Site "Fagernes"]
[Date "2019.04.19"]
[Round "7.22"]
[White "Betaneli, Alexander"]
[Black "Tryggestad, Andreas Garberg"]
[Result "0-1"]
[ECO "A25"]
[WhiteElo "2235"]
[BlackElo "2305"]
[Annotator "NA"]
[PlyCount "88"]
[EventDate "2019.04.14"]
[EventType "tourn"]
[EventCountry "NOR"]
[SourceTitle "playchess.com"]
[Source "ChessBase"]
[SourceQuality "1"]
[TimeControl "40/5400+30:1800+30"]

1. c4 {[%emt 0:00:00]} f5 {[%emt 0:03:43]} 2. g3 {[%emt 0:00:54]} Nf6 {[%emt 0:00:06]} 3. Bg2 {[%emt 0:00:07]} g6 {[%emt 0:00:04]} 4. b3 {[%emt 0:14:21]} Bg7 {[%emt 0:00:28]} 5. Bb2 {[%emt 0:00:09]} d6 {[%emt 0:00:04]} 6. Nc3 {[%emt 0:02:15]} e5 {[%emt 0:00:33]} 7. e3 {[%emt 0:00:39]} O-O {[%emt 0:00:27]} 8. Nge2 {[%emt 0:00:04]} Nc6 {[%emt 0:01:13]} 9. O-O {[%emt 0:06:21]} Bd7 {[%emt 0:02:50]} 10. d3 {[%emt 0:01:38]} g5 {[%emt 0:02:44]} 11. f4 {[%emt 0:09:30]} exf4 {[%emt 0:15:18]} 12. exf4 {[%emt 0:01:23]} Ng4 {[%emt 0:00:06]} 13. Qd2 {[%emt 0:05:17]} gxf4 {[%emt 0:01:18]} 14. Bd5+ {[%emt 0:18:49]} Kh8 {[%emt 0:00:07]} 15. Nxf4 {[%emt 0:01:45]} Nce5 {[%emt 0:17:04]} 16. Rae1 {[%emt 0:05:12]} c6 {[%emt 0:08:12]} 17. Bg2 {[%emt 0:01:07]} Ng6 {[%emt 0:08:09]} 18. Nce2 {[%emt 0:04:21]} Qb6+ {[%emt 0:00:48]} 19. d4 {[%emt 0:03:13]} Rae8 {[%emt 0:00:02]} 20. Nxg6+ {[%emt 0:02:10]} hxg6 {[%emt 0:01:04]} 21. Nf4 {[%emt 0:00:02]} Kh7 {[%emt 0:00:11]} 22. Bf3 {[%emt 0:05:43]} Nf6 {[%emt 0:02:51]} 23. Qd3 {[%emt 0:02:47]} Bh6 {[%emt 0:01:26]} 24. Bc3 {[%emt 0:01:47]} a5 {[%emt 0:01:13]} 25. Kg2 {[%emt 0:00:29]} d5 {[%emt 0:01:57]} 26. cxd5 {[%emt 0:01:32]} Bxf4 {[%emt 0:00:55]} 27. gxf4 {[%emt 0:00:34]} cxd5 {[%emt 0:00:06]} 28. Qd2 {[%emt 0:04:39]} Ne4 {[%emt 0:07:59]} 29. Bxe4 {[%emt 0:00:07]} fxe4 {[%emt 0:00:01]} 30. Bxa5 {[%emt 0:00:52]} Qf6 {[%emt 0:00:02]} 31. Bc7 {[%emt 0:01:31]} Bg4 {[%emt 0:00:02]} 32. Be5 {[%emt 0:02:46]} Bf3+ {[%emt 0:00:12]} 33. Kg1 {[%emt 0:01:28]} Qb6 {[%emt 0:00:23]} 34. Qf2 {[%emt 0:00:44]} Rf5 {[%emt 0:00:34]} 35. Rc1 {[%emt 0:00:32]} g5 {[%emt 0:03:17]} 36. Rc7+ {[%emt 0:01:02]} Kh6 {[%emt 0:00:01]} 37. Qg3 {[%emt 0:00:49]} Rexe5 {[%emt 0:00:45]} 38. Rxf3 {[%emt 0:01:17]} Qxc7 {[%emt 0:00:29]} 39. Rc3 {[%emt 0:00:37]} Qb6 {[%emt 0:01:04]} 40. Qh3+ {[%emt 0:00:53]} Kg6 {[%emt 0:00:20]} 41. fxe5 {[%emt 0:03:30]} Qxd4+ {[%emt 0:01:39]} 42. Qe3 {[%emt 0:00:42]} Qd1+ {[%emt 0:00:17]} 43. Kg2 {[%emt 0:00:31]} Qf1+ {[%emt 0:00:49]} 44. Kg3 {[%emt 0:00:10]} Rf3+ {[%emt 0:00:05]} 0-1

[Event "Fagernes GM-B 2019"]
[Site "Fagernes"]
[Date "2019.04.19"]
[Round "7.24"]
[White "Lund, Gunnar"]
[Black "Holm, Kristian Stuvik"]
[Result "0-1"]
[ECO "A15"]
[WhiteElo "2271"]
[BlackElo "2467"]
[Annotator "ChessBase"]
[PlyCount "88"]
[EventDate "2019.04.14"]
[EventType "tourn"]
[EventCountry "NOR"]
[SourceTitle "playchess.com"]
[Source "ChessBase"]
[SourceQuality "1"]
[TimeControl "40/5400+30:1800+30"]

1. b3 {[%emt 0:00:28]} Nf6 {[%emt 0:00:31]} 2. Bb2 {[%emt 0:00:17]} g6 {[%emt 0:00:06]} 3. Nf3 {[%emt 0:01:24]} Bg7 {[%emt 0:00:12]} 4. e3 {[%emt 0:00:54]} O-O {[%emt 0:00:12]} 5. c4 {[%emt 0:00:12]} d6 {[%emt 0:05:18]} 6. Be2 {[%emt 0:03:45]} e5 {[%emt 0:02:16]} 7. d3 {[%emt 0:06:13]} c5 {[%emt 0:05:09]} 8. O-O {[%emt 0:04:46]} Nc6 {[%emt 0:00:06]} 9. Nc3 {[%emt 0:03:51]} d5 {[%emt 0:03:46]} 10. cxd5 {[%emt 0:07:25]} Nxd5 {[%emt 0:00:16]} 11. Nxd5 {[%emt 0:04:49]} Qxd5 {[%emt 0:00:05]} 12. a3 {[%emt 0:00:15]} Be6 {[%emt 0:05:32]} 13. Nd2 {[%emt 0:00:38]} Rfd8 {[%emt 0:03:43]} 14. Qc2 {[%emt 0:01:38]} Rac8 {[%emt 0:00:25]} 15. Rac1 {[%emt 0:05:37]} b6 {[%emt 0:06:59]} 16. Rfd1 {[%emt 0:01:25]} Qd7 {[%emt 0:01:32]} 17. Qb1 {[%emt 0:03:00]} f6 {[%emt 0:07:48]} 18. Bc3 {[%emt 0:07:13]} a5 {[%emt 0:02:59]} 19. Nc4 {[%emt 0:04:07]} Rb8 {[%emt 0:02:07]} 20. Bf3 {[%emt 0:04:07]} Bd5 {[%emt 0:05:35]} 21. Bxd5+ {[%emt 0:03:19]} Qxd5 {[%emt 0:00:08]} 22. b4 {[%emt 0:04:18]} axb4 {[%emt 0:04:41]} 23. axb4 {[%emt 0:00:15]} cxb4 {[%emt 0:08:54]} 24. Bxb4 {[%emt 0:00:21]} Nxb4 {[%emt 0:01:45]} 25. Qxb4 {[%emt 0:00:14]} b5 {[%emt 0:00:17]} 26. Na5 {[%emt 0:02:42]} Rdc8 {[%emt 0:03:07]} 27. Qb3 {[%emt 0:12:19]} Qxb3 {[%emt 0:00:17]} 28. Nxb3 {[%emt 0:00:05]} Bf8 {[%emt 0:01:27]} 29. Rxc8 {[%emt 0:03:05]} Rxc8 {[%emt 0:00:04]} 30. Rc1 {[%emt 0:00:06]} Ra8 {[%emt 0:04:37]} 31. Ra1 {[%emt 0:00:16]} Ba3 {[%emt 0:08:58]} 32. Kf1 {[%emt 0:00:49]} Ra4 {[%emt 0:00:21]} 33. Rb1 {[%emt 0:03:57]} Be7 {[%emt 0:01:13]} 34. Rb2 {[%emt 0:00:39]} Kf7 {[%emt 0:01:17]} 35. Ke2 {[%emt 0:00:21]} Ke6 {[%emt 0:04:37]} 36. Nd2 {[%emt 0:01:23]} b4 {[%emt 0:00:23]} 37. Kd1 {[%emt 0:03:51]} f5 {[%emt 0:01:45]} 38. Kc2 {[%emt 0:00:17]} Ra3 {[%emt 0:01:40]} 39. Nc4 {[%emt 0:00:47]} Rc3+ {[%emt 0:09:22]} 40. Kb1 {[%emt 0:05:00]} Rxd3 {[%emt 0:00:00]} 41. Nd2 {[%emt 0:30:14]} e4 {[%emt 0:22:08]} 42. Ra2 {[%emt 0:00:49]} b3 {[%emt 0:02:58]} 43. Ra6+ {[%emt 0:00:15]} Kd5 {[%emt 0:00:05]} 44. Ra5+ {[%emt 0:03:01]} Bc5 {[%emt 0:00:09]} 0-1

[Event "Fagernes GM-B 2019"]
[Site "Fagernes"]
[Date "2019.04.19"]
[Round "7.25"]
[White "Rozentalis, Eduardas"]
[Black "Kazakovskiy, Valeriy"]
[Result "0-1"]
[ECO "C48"]
[WhiteElo "2568"]
[BlackElo "2440"]
[Annotator "ChessBase"]
[PlyCount "90"]
[EventDate "2019.04.14"]
[EventType "tourn"]
[EventCountry "NOR"]
[SourceTitle "playchess.com"]
[Source "ChessBase"]
[SourceQuality "1"]
[TimeControl "40/5400+30:1800+30"]

1. e4 {[%emt 0:00:00]} e5 {[%emt 0:00:00]} 2. Nf3 {[%emt 0:00:15]} Nc6 {[%emt 0:00:04]} 3. Nc3 {[%emt 0:00:59]} Nf6 {[%emt 0:00:19]} 4. Bb5 {[%emt 0:00:14]} Bd6 {[%emt 0:00:41]} 5. a3 {[%emt 0:03:49]} O-O {[%emt 0:00:57]} 6. d3 {[%emt 0:00:04]} a6 {[%emt 0:09:27]} 7. Bc4 {[%emt 0:00:58]} Bc5 {[%emt 0:02:26]} 8. Bg5 {[%emt 0:03:40]} h6 {[%emt 0:02:12]} 9. Bh4 {[%emt 0:01:06]} Be7 {[%emt 0:06:32]} 10. h3 {[%emt 0:27:05]} d6 {[%emt 0:07:33]} 11. O-O {[%emt 0:04:23]} Be6 {[%emt 0:06:15]} 12. Re1 {[%emt 0:03:25]} b5 {[%emt 0:08:48]} 13. Ba2 {[%emt 0:11:51]} Re8 {[%emt 0:08:40]} 14. Bxe6 {[%emt 0:02:30]} fxe6 {[%emt 0:01:24]} 15. d4 {[%emt 0:00:08]} Nxd4 {[%emt 0:03:17]} 16. Nxd4 {[%emt 0:00:26]} exd4 {[%emt 0:00:09]} 17. Qxd4 {[%emt 0:00:03]} Nd7 {[%emt 0:00:49]} 18. Bg3 {[%emt 0:04:05]} Bf6 {[%emt 0:04:34]} 19. Qd2 {[%emt 0:08:04]} Qb8 {[%emt 0:05:01]} 20. f4 {[%emt 0:04:32]} Qb6+ {[%emt 0:01:59]} 21. Kh1 {[%emt 0:03:12]} Qc6 {[%emt 0:02:59]} 22. e5 {[%emt 0:00:44]} dxe5 {[%emt 0:02:19]} 23. fxe5 {[%emt 0:00:08]} Bg5 {[%emt 0:00:40]} 24. Qe2 {[%emt 0:00:17]} Rf8 {[%emt 0:02:12]} 25. Rad1 {[%emt 0:04:01]} Bf4 {[%emt 0:06:51]} 26. Bxf4 {[%emt 0:03:42]} Rxf4 {[%emt 0:00:09]} 27. Na2 {[%emt 0:00:16]} Nb6 {[%emt 0:02:24]} 28. Nb4 {[%emt 0:00:35]} Qc4 {[%emt 0:01:09]} 29. Qe3 {[%emt 0:01:46]} Rf5 {[%emt 0:03:01]} 30. b3 {[%emt 0:05:25]} Qh4 {[%emt 0:02:48]} 31. Kh2 {[%emt 0:00:50]} a5 {[%emt 0:02:03]} 32. Rd4 {[%emt 0:02:30]} Qe7 {[%emt 0:02:38]} 33. Nc6 {[%emt 0:00:59]} Qxa3 {[%emt 0:00:52]} 34. Qe4 {[%emt 0:01:57]} Raf8 {[%emt 0:01:21]} 35. b4 {[%emt 0:01:15]} Nd5 {[%emt 0:01:55]} 36. Rxd5 {[%emt 0:00:46]} exd5 {[%emt 0:00:37]} 37. Qxd5+ {[%emt 0:00:33]} Kh8 {[%emt 0:01:13]} 38. bxa5 {[%emt 0:01:26]} Rg5 {[%emt 0:00:54]} 39. Qe4 {[%emt 0:00:42]} Qg3+ {[%emt 0:01:31]} 40. Kh1 {[%emt 0:00:04]} Rgf5 {[%emt 0:00:25]} 41. Rg1 {[%emt 0:30:23]} Rh5 {[%emt 0:06:31]} 42. Rd1 {[%emt 0:00:00]} Rh4 {[%emt 0:02:14]} 43. Qe2 {[%emt 0:00:00]} Rc4 {[%emt 0:09:00]} 44. Nd4 {[%emt 0:00:00]} Rf2 {[%emt 0:00:50]} 45. Qe4 {[%emt 0:00:00]} Rxd4 {[%emt 0:00:33]} 0-1